[Event "*** SCC Grand Prix: Titled Tuesday Blitz"]
[Site "Chess.com"]
[Date "2020.07.21"]
[Round "9"]
[White "zaur-mammadov"]
[Black "Andreikka"]
[Result "0-1"]
[WhiteElo "2669"]
[BlackElo "2896"]
[TimeControl "180+1"]
[EndTime "11:49:35 PDT"]
[Termination "Andreikka won on time"]

1. e4 {[%clk 0:03:00.9]} 1... d5 {[%clk 0:02:55.9]} 2. exd5 {[%clk 0:03:00.6]}
2... Qxd5 {[%clk 0:02:56.8]} 3. Nc3 {[%clk 0:03:00.3]} 3... Qa5 {[%clk
0:02:54.9]} 4. d4 {[%clk 0:03:00.3]} 4... Nf6 {[%clk 0:02:53.2]} 5. Bc4 {[%clk
0:03:00.6]} 5... c6 {[%clk 0:02:53]} 6. Nf3 {[%clk 0:02:59.5]} 6... Bf5 {[%clk
0:02:52.2]} 7. Qe2 {[%clk 0:02:58.5]} 7... e6 {[%clk 0:02:51.2]} 8. Bd2 {[%clk
0:02:56.7]} 8... Qc7 {[%clk 0:02:51.3]} 9. O-O-O {[%clk 0:02:55.7]} 9... b5
{[%clk 0:02:49.3]} 10. Bd3 {[%clk 0:02:55.1]} 10... Bxd3 {[%clk 0:02:48.4]} 11.
Qxd3 {[%clk 0:02:54.7]} 11... Nbd7 {[%clk 0:02:49.3]} 12. Rhe1 {[%clk
0:02:53.5]} 12... Be7 {[%clk 0:02:47.9]} 13. Ne5 {[%clk 0:02:53.4]} 13... b4
{[%clk 0:02:46.4]} 14. Na4 {[%clk 0:02:49.6]} 14... Nxe5 {[%clk 0:02:44.6]} 15.
dxe5 {[%clk 0:02:41.5]} 15... Nd5 {[%clk 0:02:45.5]} 16. Qg3 {[%clk 0:02:41.8]}
16... g6 {[%clk 0:02:33.7]} 17. b3 {[%clk 0:02:35.5]} 17... Qa5 {[%clk
0:02:31.5]} 18. Kb1 {[%clk 0:02:32.5]} 18... Nb6 {[%clk 0:02:13.4]} 19. Nb2
{[%clk 0:02:31.2]} 19... Qb5 {[%clk 0:02:12.1]} 20. Qd3 {[%clk 0:02:17.7]} 20...
Nd5 {[%clk 0:02:10.5]} 21. Qxb5 {[%clk 0:01:56.3]} 21... cxb5 {[%clk 0:02:11.4]}
22. Nd3 {[%clk 0:01:56.4]} 22... a5 {[%clk 0:02:07.6]} 23. Nf4 {[%clk
0:01:55.7]} 23... Nxf4 {[%clk 0:02:01.2]} 24. Bxf4 {[%clk 0:01:55.3]} 24... Rd8
{[%clk 0:02:02.1]} 25. Be3 {[%clk 0:01:49.9]} 25... O-O {[%clk 0:01:58.3]} 26.
Bb6 {[%clk 0:01:48.2]} 26... Ra8 {[%clk 0:01:47.5]} 27. Rd7 {[%clk 0:01:47.4]}
27... Bg5 {[%clk 0:01:48.1]} 28. g3 {[%clk 0:01:43.5]} 28... Ra6 {[%clk
0:01:47.2]} 29. Rb7 {[%clk 0:01:30.3]} 29... Bd2 {[%clk 0:01:20.1]} 30. Rd1
{[%clk 0:01:29.9]} 30... Bc3 {[%clk 0:01:20.4]} 31. f4 {[%clk 0:01:28.3]} 31...
a4 {[%clk 0:01:16.6]} 32. Rdd7 {[%clk 0:01:24.6]} 32... axb3 {[%clk 0:00:44.8]}
33. cxb3 {[%clk 0:01:24.1]} 33... Rfa8 {[%clk 0:00:45.7]} 34. Rd8+ {[%clk
0:01:09.6]} 34... Kg7 {[%clk 0:00:38.9]} 35. Rxa8 {[%clk 0:01:00.8]} 35... Rxa8
{[%clk 0:00:39.8]} 36. Bc5 {[%clk 0:01:00.4]} 36... Rd8 {[%clk 0:00:19.9]} 37.
Bd6 {[%clk 0:01:00.1]} 37... g5 {[%clk 0:00:20.5]} 38. Rxb5 {[%clk 0:00:58.1]}
38... gxf4 {[%clk 0:00:20.9]} 39. gxf4 {[%clk 0:00:58.5]} 39... Bd2 {[%clk
0:00:21.8]} 40. Bxb4 {[%clk 0:00:51.1]} 40... Bxf4 {[%clk 0:00:21.9]} 41. a4
{[%clk 0:00:47.9]} 41... Bxh2 {[%clk 0:00:21.8]} 42. a5 {[%clk 0:00:47.5]} 42...
h5 {[%clk 0:00:22.2]} 43. a6 {[%clk 0:00:45.9]} 43... h4 {[%clk 0:00:18.7]} 44.
a7 {[%clk 0:00:18.4]} 44... Bg1 {[%clk 0:00:18.8]} 45. Rb8 {[%clk 0:00:17.4]}
45... Rd1+ {[%clk 0:00:19.4]} 46. Kc2 {[%clk 0:00:17.4]} 46... Bxa7 {[%clk
0:00:20.3]} 47. Rb7 {[%clk 0:00:16.2]} 47... Ra1 {[%clk 0:00:19.2]} 48. Kb2
{[%clk 0:00:16.3]} 48... Ra6 {[%clk 0:00:19.3]} 49. Bd6 {[%clk 0:00:15.5]} 49...
Bd4+ {[%clk 0:00:14.3]} 50. Kc2 {[%clk 0:00:14.2]} 50... h3 {[%clk 0:00:14.8]}
51. Rb4 {[%clk 0:00:09.7]} 51... h2 {[%clk 0:00:15]} 52. Rxd4 {[%clk 0:00:09.3]}
52... h1=Q {[%clk 0:00:15.6]} 53. Rg4+ {[%clk 0:00:09.8]} 53... Kh7 {[%clk
0:00:16.1]} 54. Rf4 {[%clk 0:00:03.3]} 54... Qh2+ {[%clk 0:00:13.5]} 0-1

[Event "*** SCC Grand Prix: Titled Tuesday Blitz"]
[Site "Chess.com"]
[Date "2020.07.21"]
[Round "9"]
[White "Gusarov91"]
[Black "Chopper1905"]
[Result "0-1"]
[WhiteElo "2643"]
[BlackElo "2885"]
[TimeControl "180+1"]
[EndTime "11:49:35 PDT"]
[Termination "Chopper1905 won on time"]

1. d4 {[%clk 0:02:58]} 1... h6 {[%clk 0:02:57.5]} 2. e4 {[%clk 0:02:57.6]} 2...
g5 {[%clk 0:02:57.7]} 3. h4 {[%clk 0:02:57.6]} 3... g4 {[%clk 0:02:57.5]} 4.
Qxg4 {[%clk 0:02:56.6]} 4... d5 {[%clk 0:02:57.5]} 5. Qe2 {[%clk 0:02:56.3]}
5... dxe4 {[%clk 0:02:57.4]} 6. Qxe4 {[%clk 0:02:56.4]} 6... Nf6 {[%clk
0:02:58]} 7. Qd3 {[%clk 0:02:56.5]} 7... Nc6 {[%clk 0:02:57.2]} 8. c3 {[%clk
0:02:55.5]} 8... Qd5 {[%clk 0:02:50.7]} 9. Nf3 {[%clk 0:02:54.2]} 9... Bf5
{[%clk 0:02:51.2]} 10. Qb5 {[%clk 0:02:53.3]} 10... Qe4+ {[%clk 0:02:51.2]} 11.
Be3 {[%clk 0:02:52.5]} 11... O-O-O {[%clk 0:02:47.1]} 12. Nbd2 {[%clk
0:02:51.9]} 12... Qg4 {[%clk 0:02:45.7]} 13. g3 {[%clk 0:02:37.2]} 13... Nd5
{[%clk 0:02:37.6]} 14. Bh3 {[%clk 0:02:31.8]} 14... Qg6 {[%clk 0:02:36]} 15. Qd3
{[%clk 0:02:13.2]} 15... e6 {[%clk 0:02:08.2]} 16. Bxf5 {[%clk 0:02:12.7]} 16...
exf5 {[%clk 0:02:08.7]} 17. O-O-O {[%clk 0:02:11.2]} 17... Bg7 {[%clk
0:02:00.1]} 18. h5 {[%clk 0:02:05.3]} 18... Qe6 {[%clk 0:01:58.3]} 19. Nh4
{[%clk 0:02:03.5]} 19... Nxe3 {[%clk 0:01:57.2]} 20. fxe3 {[%clk 0:02:02.4]}
20... Qxa2 {[%clk 0:01:57.7]} 21. Nxf5 {[%clk 0:01:58.3]} 21... Bf8 {[%clk
0:01:55.3]} 22. Qc4 {[%clk 0:01:55.9]} 22... Qa5 {[%clk 0:01:37.1]} 23. e4
{[%clk 0:01:54.4]} 23... f6 {[%clk 0:01:31]} 24. Nb3 {[%clk 0:01:52.6]} 24...
Qb6 {[%clk 0:01:24.8]} 25. Kc2 {[%clk 0:01:49.5]} 25... Kb8 {[%clk 0:01:23.5]}
26. Rhe1 {[%clk 0:01:36.1]} 26... Bd6 {[%clk 0:01:23]} 27. Rd3 {[%clk
0:01:21.2]} 27... a6 {[%clk 0:01:13.1]} 28. Qf7 {[%clk 0:01:15.3]} 28... Rdf8
{[%clk 0:01:04.9]} 29. Qc4 {[%clk 0:01:09.3]} 29... Re8 {[%clk 0:01:00.4]} 30.
Nxd6 {[%clk 0:01:07.2]} 30... cxd6 {[%clk 0:01:00.4]} 31. Qd5 {[%clk 0:01:07.6]}
31... Qc7 {[%clk 0:00:58.2]} 32. Kb1 {[%clk 0:01:03.8]} 32... Rhg8 {[%clk
0:00:58.6]} 33. Rf3 {[%clk 0:00:55.3]} 33... Rg5 {[%clk 0:00:57.9]} 34. Qc4
{[%clk 0:00:54.9]} 34... d5 {[%clk 0:00:56]} 35. Qd3 {[%clk 0:00:52.5]} 35...
Rg4 {[%clk 0:00:47]} 36. Rfe3 {[%clk 0:00:44]} 36... dxe4 {[%clk 0:00:42.6]} 37.
Rxe4 {[%clk 0:00:44.5]} 37... Rexe4 {[%clk 0:00:43.3]} 38. Rxe4 {[%clk
0:00:44.3]} 38... Rxg3 {[%clk 0:00:44]} 39. Re8+ {[%clk 0:00:44.2]} 39... Ka7
{[%clk 0:00:43.7]} 40. Qf1 {[%clk 0:00:39.4]} 40... Qf7 {[%clk 0:00:31.5]} 41.
Qf2 {[%clk 0:00:36.6]} 41... Qxe8 {[%clk 0:00:19.1]} 42. Qxg3 {[%clk 0:00:36.6]}
42... Qxh5 {[%clk 0:00:18.4]} 43. Ka2 {[%clk 0:00:30.8]} 43... Qd5 {[%clk
0:00:18.1]} 44. Qc7 {[%clk 0:00:25.2]} 44... h5 {[%clk 0:00:16]} 45. Ka3 {[%clk
0:00:25.2]} 45... Qb5 {[%clk 0:00:11.9]} 46. Qf7 {[%clk 0:00:12.8]} 46... h4
{[%clk 0:00:10.5]} 47. Qxf6 {[%clk 0:00:12.4]} 47... Qh5 {[%clk 0:00:09.2]} 48.
Qg7 {[%clk 0:00:10.3]} 48... h3 {[%clk 0:00:03.7]} 49. Nc5 {[%clk 0:00:10.4]}
49... Na5 {[%clk 0:00:03.8]} 50. Kb4 {[%clk 0:00:08.3]} 50... Nc6+ {[%clk
0:00:03.2]} 51. Ka3 {[%clk 0:00:07.4]} 51... Na5 {[%clk 0:00:02.8]} 52. Ka4
{[%clk 0:00:07.7]} 52... h2 {[%clk 0:00:02.6]} 53. Kxa5 {[%clk 0:00:07.5]} 53...
h1=Q {[%clk 0:00:03.3]} 54. Qc7 {[%clk 0:00:03.9]} 54... Qc6 {[%clk 0:00:03.4]}
0-1

[Event "*** SCC Grand Prix: Titled Tuesday Blitz"]
[Site "Chess.com"]
[Date "2020.07.21"]
[Round "9"]
[White "Munguntuul_B"]
[Black "ManuDavid2910"]
[Result "0-1"]
[WhiteElo "2496"]
[BlackElo "2692"]
[TimeControl "180+1"]
[EndTime "11:49:36 PDT"]
[Termination "ManuDavid2910 won on time"]

1. e4 {[%clk 0:03:00.9]} 1... c5 {[%clk 0:02:59.6]} 2. Nf3 {[%clk 0:03:00.1]}
2... Nc6 {[%clk 0:02:59.3]} 3. d4 {[%clk 0:03:00]} 3... cxd4 {[%clk 0:02:58.9]}
4. Nxd4 {[%clk 0:02:59.8]} 4... e5 {[%clk 0:02:59.8]} 5. Nb5 {[%clk 0:02:59.4]}
5... d6 {[%clk 0:02:59.9]} 6. N1c3 {[%clk 0:02:56.8]} 6... a6 {[%clk 0:02:59.1]}
7. Na3 {[%clk 0:02:56.5]} 7... Be6 {[%clk 0:02:59.4]} 8. Nd5 {[%clk 0:02:55.2]}
8... Nf6 {[%clk 0:03:00.3]} 9. Bg5 {[%clk 0:02:53.3]} 9... Bxd5 {[%clk
0:03:00.4]} 10. exd5 {[%clk 0:02:52.5]} 10... Qa5+ {[%clk 0:03:01.3]} 11. c3
{[%clk 0:02:46.7]} 11... Qxd5 {[%clk 0:03:01.1]} 12. Nc4 {[%clk 0:02:44]} 12...
Qe6 {[%clk 0:02:59]} 13. Nb6 {[%clk 0:02:41.5]} 13... Rd8 {[%clk 0:02:59.1]} 14.
Bc4 {[%clk 0:02:35.1]} 14... d5 {[%clk 0:02:48.6]} 15. Bxf6 {[%clk 0:02:33.9]}
15... Qxf6 {[%clk 0:02:47.8]} 16. Nxd5 {[%clk 0:02:30.8]} 16... Qd6 {[%clk
0:02:47.4]} 17. O-O {[%clk 0:02:22]} 17... Be7 {[%clk 0:02:13]} 18. Qg4 {[%clk
0:02:10]} 18... O-O {[%clk 0:02:09.4]} 19. Rad1 {[%clk 0:02:09.2]} 19... Kh8
{[%clk 0:01:59.7]} 20. Ne3 {[%clk 0:02:07.6]} 20... Qc5 {[%clk 0:01:58.2]} 21.
Nf5 {[%clk 0:02:00.9]} 21... Bf6 {[%clk 0:01:54]} 22. b4 {[%clk 0:01:58.8]}
22... Qb6 {[%clk 0:01:47.8]} 23. Bd5 {[%clk 0:01:49]} 23... g6 {[%clk
0:01:20.2]} 24. Nh6 {[%clk 0:01:47.4]} 24... Qc7 {[%clk 0:01:19.9]} 25. Qf3
{[%clk 0:01:42.8]} 25... Kg7 {[%clk 0:01:15.2]} 26. Ng4 {[%clk 0:01:09.6]} 26...
Bg5 {[%clk 0:01:07.4]} 27. Bxc6 {[%clk 0:01:08.6]} 27... bxc6 {[%clk 0:01:08.3]}
28. Rde1 {[%clk 0:01:06.9]} 28... Rfe8 {[%clk 0:00:59.4]} 29. Ne3 {[%clk
0:00:50]} 29... e4 {[%clk 0:00:53.3]} 30. Qg4 {[%clk 0:00:48.5]} 30... h6 {[%clk
0:00:52.9]} 31. h4 {[%clk 0:00:46]} 31... f5 {[%clk 0:00:51.7]} 32. Qh3 {[%clk
0:00:36]} 32... Bf6 {[%clk 0:00:51]} 33. h5 {[%clk 0:00:33.9]} 33... Bxc3 {[%clk
0:00:35.9]} 34. hxg6 {[%clk 0:00:33]} 34... Bxe1 {[%clk 0:00:35.1]} 35. Nxf5+
{[%clk 0:00:32.4]} 35... Kxg6 {[%clk 0:00:30.3]} 36. Rxe1 {[%clk 0:00:30.6]}
36... Qf4 {[%clk 0:00:27.2]} 37. Ng3 {[%clk 0:00:22.3]} 37... Rd2 {[%clk
0:00:19]} 38. Qh5+ {[%clk 0:00:21.2]} 38... Kf6 {[%clk 0:00:18.7]} 39. Rf1
{[%clk 0:00:12.3]} 39... Re5 {[%clk 0:00:15.1]} 40. Qh3 {[%clk 0:00:10.2]} 40...
Qg5 {[%clk 0:00:08.5]} 41. Qc8 {[%clk 0:00:08]} 41... Rd6 {[%clk 0:00:05.6]} 42.
Qf8+ {[%clk 0:00:06.3]} 42... Ke6 {[%clk 0:00:05.6]} 43. Qe8+ {[%clk 0:00:05.1]}
43... Qe7 {[%clk 0:00:05.4]} 44. Qg6+ {[%clk 0:00:05]} 44... Kd7 {[%clk
0:00:05.3]} 45. Qg4+ {[%clk 0:00:04.2]} 45... Kc7 {[%clk 0:00:05.2]} 46. Nf5
{[%clk 0:00:03.5]} 46... Qd7 {[%clk 0:00:05.1]} 47. Nxh6 {[%clk 0:00:02.3]}
47... Qxg4 {[%clk 0:00:04.7]} 48. Nxg4 {[%clk 0:00:01.6]} 48... Rb5 {[%clk
0:00:05.6]} 0-1

[Event "*** SCC Grand Prix: Titled Tuesday Blitz"]
[Site "Chess.com"]
[Date "2020.07.21"]
[Round "9"]
[White "chesslh19"]
[Black "qingaunlee"]
[Result "0-1"]
[WhiteElo "2177"]
[BlackElo "2344"]
[TimeControl "180+1"]
[EndTime "11:49:41 PDT"]
[Termination "qingaunlee won by resignation"]

1. e4 {[%clk 0:03:00.9]} 1... e6 {[%clk 0:02:03.2]} 2. d4 {[%clk 0:02:59.6]}
2... d5 {[%clk 0:01:59.5]} 3. Nd2 {[%clk 0:02:59.7]} 3... Be7 {[%clk 0:01:48.4]}
4. Bd3 {[%clk 0:02:56.7]} 4... c5 {[%clk 0:01:47.2]} 5. dxc5 {[%clk 0:02:55.7]}
5... Nf6 {[%clk 0:01:47.5]} 6. Qe2 {[%clk 0:02:49]} 6... Nc6 {[%clk 0:01:46.6]}
7. Ngf3 {[%clk 0:02:34.6]} 7... O-O {[%clk 0:01:45.3]} 8. Nb3 {[%clk 0:02:15.8]}
8... a5 {[%clk 0:01:44.1]} 9. a4 {[%clk 0:02:12.8]} 9... Nb4 {[%clk 0:01:38.8]}
10. O-O {[%clk 0:02:07.6]} 10... Bd7 {[%clk 0:01:28.5]} 11. e5 {[%clk
0:01:58.2]} 11... Ne8 {[%clk 0:01:27.1]} 12. Nfd4 {[%clk 0:01:50]} 12... Nxd3
{[%clk 0:01:25.1]} 13. cxd3 {[%clk 0:01:45.8]} 13... g6 {[%clk 0:01:23]} 14. Bh6
{[%clk 0:01:45]} 14... Ng7 {[%clk 0:01:22.7]} 15. Nb5 {[%clk 0:01:34]} 15... f6
{[%clk 0:01:17.2]} 16. f4 {[%clk 0:01:11.2]} 16... fxe5 {[%clk 0:01:14.3]} 17.
fxe5 {[%clk 0:01:08.3]} 17... Rf5 {[%clk 0:01:14.5]} 18. d4 {[%clk 0:01:01.4]}
18... Rxf1+ {[%clk 0:01:08.7]} 19. Rxf1 {[%clk 0:01:00.6]} 19... Nf5 {[%clk
0:01:09.6]} 20. Bd2 {[%clk 0:00:51.5]} 20... Bg5 {[%clk 0:01:08.7]} 21. Qe1
{[%clk 0:00:40.6]} 21... Bxb5 {[%clk 0:01:03.8]} 22. axb5 {[%clk 0:00:28.6]}
22... a4 {[%clk 0:01:04.7]} 23. Nc1 {[%clk 0:00:20.1]} 23... Nxd4 {[%clk
0:01:04.2]} 24. Ne2 {[%clk 0:00:14.4]} 24... Nf5 {[%clk 0:00:53.4]} 25. Ng3
{[%clk 0:00:12.4]} 25... Be7 {[%clk 0:00:52]} 26. Nxf5 {[%clk 0:00:12]} 26...
exf5 {[%clk 0:00:51.2]} 27. e6 {[%clk 0:00:12.3]} 27... Bxc5+ {[%clk 0:00:50.2]}
28. Kh1 {[%clk 0:00:12.3]} 28... Qe7 {[%clk 0:00:49.9]} 29. Qe5 {[%clk 0:00:11]}
29... Re8 {[%clk 0:00:47.6]} 30. Re1 {[%clk 0:00:10.7]} 30... d4 {[%clk
0:00:44.4]} 31. g3 {[%clk 0:00:10.2]} 31... b6 {[%clk 0:00:43.6]} 32. Kg2 {[%clk
0:00:10]} 32... Qb7+ {[%clk 0:00:43]} 33. Kh3 {[%clk 0:00:08]} 33... Re7 {[%clk
0:00:43]} 34. Bg5 {[%clk 0:00:07.5]} 34... Re8 {[%clk 0:00:35.3]} 35. Bh6 {[%clk
0:00:06.4]} 35... Re7 {[%clk 0:00:33.6]} 36. Bg5 {[%clk 0:00:06.3]} 36... Re8
{[%clk 0:00:33.5]} 37. Bh6 {[%clk 0:00:06.7]} 37... d3 {[%clk 0:00:27.3]} 38.
Qf6 {[%clk 0:00:02.5]} 38... d2 {[%clk 0:00:19.9]} 39. Rd1 {[%clk 0:00:02.8]}
39... Bf8 {[%clk 0:00:17.8]} 40. e7 {[%clk 0:00:02.4]} 40... Bxh6 {[%clk
0:00:17]} 41. Qh4 {[%clk 0:00:02]} 41... Bg7 {[%clk 0:00:16.3]} 42. Rxd2 {[%clk
0:00:02.3]} 42... Qxe7 {[%clk 0:00:15.8]} 43. Qxe7 {[%clk 0:00:01.3]} 43... Rxe7
{[%clk 0:00:16.7]} 44. Rd8+ {[%clk 0:00:01.4]} 44... Kf7 {[%clk 0:00:17]} 45.
Rb8 {[%clk 0:00:02]} 45... Bd4 {[%clk 0:00:15.6]} 46. Ra8 {[%clk 0:00:02.1]}
46... Bc5 {[%clk 0:00:15.6]} 47. Rxa4 {[%clk 0:00:02.3]} 47... Re2 {[%clk
0:00:15.3]} 48. b4 {[%clk 0:00:01.5]} 48... Bd4 {[%clk 0:00:14.2]} 49. Ra7+
{[%clk 0:00:02]} 49... Kg8 {[%clk 0:00:14.2]} 50. Rd7 {[%clk 0:00:02.2]} 50...
Rd2 {[%clk 0:00:13.7]} 51. Rd8+ {[%clk 0:00:02]} 51... Kg7 {[%clk 0:00:13.6]}
52. Rd7+ {[%clk 0:00:02.7]} 52... Kh6 {[%clk 0:00:13.8]} 53. g4 {[%clk
0:00:03.3]} 53... Rd3+ {[%clk 0:00:12]} 54. Kg2 {[%clk 0:00:03]} 54... fxg4
{[%clk 0:00:12.5]} 55. Rd5 {[%clk 0:00:02.6]} 55... Rd2+ {[%clk 0:00:12.4]} 56.
Kf1 {[%clk 0:00:02.4]} 56... Be3 {[%clk 0:00:11]} 57. Re5 {[%clk 0:00:02.2]}
57... Bf4 {[%clk 0:00:10.5]} 58. Re4 {[%clk 0:00:02.5]} 58... Kg5 {[%clk
0:00:10.4]} 59. Re2 {[%clk 0:00:02.5]} 59... Rxe2 {[%clk 0:00:10.3]} 60. Kxe2
{[%clk 0:00:03.4]} 60... Bxh2 {[%clk 0:00:10.5]} 61. Kf1 {[%clk 0:00:03.7]}
61... Bd6 {[%clk 0:00:11.1]} 62. Kg2 {[%clk 0:00:04.6]} 62... Kf4 {[%clk
0:00:11.6]} 63. Kg1 {[%clk 0:00:05.3]} 63... g3 {[%clk 0:00:12.1]} 64. Kg2
{[%clk 0:00:06.2]} 64... Kg4 {[%clk 0:00:12.2]} 65. Kg1 {[%clk 0:00:07.1]} 65...
Kh3 {[%clk 0:00:11.3]} 66. Kh1 {[%clk 0:00:07.4]} 66... Bxb4 {[%clk 0:00:10.8]}
0-1

[Event "*** SCC Grand Prix: Titled Tuesday Blitz"]
[Site "Chess.com"]
[Date "2020.07.21"]
[Round "9"]
[White "RobertoJBM"]
[Black "maciejos95"]
[Result "1-0"]
[WhiteElo "2655"]
[BlackElo "2499"]
[TimeControl "180+1"]
[EndTime "11:49:42 PDT"]
[Termination "RobertoJBM won by resignation"]

1. d4 {[%clk 0:03:00.9]} 1... d5 {[%clk 0:02:59.4]} 2. c4 {[%clk 0:02:59.1]}
2... e6 {[%clk 0:02:59.3]} 3. Nc3 {[%clk 0:02:58]} 3... Nf6 {[%clk 0:02:59.5]}
4. cxd5 {[%clk 0:02:54.8]} 4... exd5 {[%clk 0:02:59.5]} 5. Bg5 {[%clk
0:02:54.4]} 5... Be7 {[%clk 0:02:57.9]} 6. e3 {[%clk 0:02:53.7]} 6... O-O {[%clk
0:02:53.9]} 7. Bd3 {[%clk 0:02:53.3]} 7... c6 {[%clk 0:02:52.8]} 8. Qc2 {[%clk
0:02:52.3]} 8... Nbd7 {[%clk 0:02:52.7]} 9. Nge2 {[%clk 0:02:51.2]} 9... Re8
{[%clk 0:02:52.6]} 10. O-O {[%clk 0:02:49.5]} 10... Nf8 {[%clk 0:02:51.2]} 11.
f3 {[%clk 0:02:45]} 11... Nh5 {[%clk 0:02:42.9]} 12. Bxe7 {[%clk 0:02:42.6]}
12... Qxe7 {[%clk 0:02:43.2]} 13. e4 {[%clk 0:02:43.1]} 13... Be6 {[%clk
0:01:58.4]} 14. e5 {[%clk 0:02:32.1]} 14... g6 {[%clk 0:01:36.3]} 15. f4 {[%clk
0:02:24.6]} 15... f5 {[%clk 0:01:28.5]} 16. Qd2 {[%clk 0:02:08.7]} 16... b6
{[%clk 0:01:18.7]} 17. Rac1 {[%clk 0:01:49.5]} 17... c5 {[%clk 0:01:01.9]} 18.
Nb5 {[%clk 0:01:32.7]} 18... c4 {[%clk 0:00:50.9]} 19. Bc2 {[%clk 0:01:28.7]}
19... a6 {[%clk 0:00:44.9]} 20. Nd6 {[%clk 0:01:26.1]} 20... Reb8 {[%clk
0:00:44.9]} 21. a4 {[%clk 0:01:24.2]} 21... Ng7 {[%clk 0:00:43.4]} 22. b3 {[%clk
0:01:17.6]} 22... b5 {[%clk 0:00:43.7]} 23. axb5 {[%clk 0:01:15.8]} 23... axb5
{[%clk 0:00:43.9]} 24. bxc4 {[%clk 0:01:13.8]} 24... bxc4 {[%clk 0:00:43.7]} 25.
Ra1 {[%clk 0:01:02.2]} 25... Ne8 {[%clk 0:00:40.2]} 26. Nxe8 {[%clk 0:01:01.9]}
26... Rxe8 {[%clk 0:00:34.7]} 27. Rfb1 {[%clk 0:00:58.3]} 27... Rxa1 {[%clk
0:00:34.5]} 28. Rxa1 {[%clk 0:00:58.3]} 28... Rb8 {[%clk 0:00:34.8]} 29. Nc3
{[%clk 0:00:54.5]} 29... Rb2 {[%clk 0:00:27.5]} 30. Nd1 {[%clk 0:00:40.8]} 30...
Rb7 {[%clk 0:00:22.4]} 31. Qc3 {[%clk 0:00:38.8]} 31... Ra7 {[%clk 0:00:20]} 32.
Rxa7 {[%clk 0:00:36.6]} 32... Qxa7 {[%clk 0:00:20.1]} 33. Kf2 {[%clk 0:00:37.1]}
33... Kf7 {[%clk 0:00:19.7]} 34. g3 {[%clk 0:00:37.3]} 34... Nd7 {[%clk
0:00:19.6]} 35. Ne3 {[%clk 0:00:37.2]} 35... Nb6 {[%clk 0:00:17.1]} 36. Bd1
{[%clk 0:00:36]} 36... Qa2+ {[%clk 0:00:16.2]} 37. Qc2 {[%clk 0:00:29.9]} 37...
Qxc2+ {[%clk 0:00:16]} 38. Bxc2 {[%clk 0:00:28.5]} 38... Bd7 {[%clk 0:00:15.6]}
39. Ke2 {[%clk 0:00:28.7]} 39... Ke6 {[%clk 0:00:15.5]} 40. Kd2 {[%clk
0:00:29.1]} 40... Ba4 {[%clk 0:00:15]} 41. Kc3 {[%clk 0:00:28.4]} 41... Bxc2
{[%clk 0:00:14.8]} 42. Nxc2 {[%clk 0:00:28.6]} 42... Na8 {[%clk 0:00:09.7]} 43.
Kb4 {[%clk 0:00:25.8]} 43... Nc7 {[%clk 0:00:10.1]} 44. Ne3 {[%clk 0:00:20.6]}
44... Na6+ {[%clk 0:00:09.9]} 45. Kb5 {[%clk 0:00:20.8]} 45... Nc7+ {[%clk
0:00:09.9]} 46. Kc6 {[%clk 0:00:21.4]} 46... Na6 {[%clk 0:00:09.9]} 47. Nxd5
{[%clk 0:00:20.8]} 47... Nb8+ {[%clk 0:00:10.3]} 48. Kc5 {[%clk 0:00:20]} 48...
Na6+ {[%clk 0:00:10.5]} 49. Kxc4 {[%clk 0:00:19.7]} 49... Nb8 {[%clk 0:00:10]}
50. Ne3 {[%clk 0:00:19.4]} 50... Na6 {[%clk 0:00:09.8]} 51. d5+ {[%clk
0:00:19.5]} 51... Kd7 {[%clk 0:00:10.4]} 52. Kb5 {[%clk 0:00:19]} 52... Nc7+
{[%clk 0:00:10.2]} 53. Kc5 {[%clk 0:00:19.6]} 53... Na6+ {[%clk 0:00:10.5]} 54.
Kd4 {[%clk 0:00:19.6]} 54... Nb4 {[%clk 0:00:10.2]} 55. Kc4 {[%clk 0:00:18.8]}
55... Na2 {[%clk 0:00:09.9]} 56. g4 {[%clk 0:00:16.3]} 56... fxg4 {[%clk
0:00:09.6]} 57. Nxg4 {[%clk 0:00:17.2]} 57... h5 {[%clk 0:00:09.2]} 58. Nf6+
{[%clk 0:00:16]} 58... Ke7 {[%clk 0:00:09.6]} 59. Ne4 {[%clk 0:00:16.9]} 59...
h4 {[%clk 0:00:09.5]} 60. d6+ {[%clk 0:00:15.3]} 60... Ke6 {[%clk 0:00:09.3]}
61. Nc5+ {[%clk 0:00:15.5]} 61... Kf7 {[%clk 0:00:09.7]} 62. e6+ {[%clk
0:00:15.4]} 62... Kf6 {[%clk 0:00:10.2]} 63. e7 {[%clk 0:00:15]} 63... Kf7
{[%clk 0:00:10.5]} 64. Nd3 {[%clk 0:00:15.6]} 64... h3 {[%clk 0:00:09.5]} 65.
Kb3 {[%clk 0:00:15.1]} 65... Nc1+ {[%clk 0:00:09.4]} 66. Nxc1 {[%clk 0:00:15.3]}
66... g5 {[%clk 0:00:10.3]} 67. fxg5 {[%clk 0:00:14.1]} 1-0